bitfinex-derivatives/quotes_BTCF0:USTF0_20230701
["timestamp","ask_amount","ask_price","bid_price","bid_amount"]
[1688212496565,0.39865225,30572.0,30571.0,0.77050814]
[1688212498562,0.39865225,30572.0,30571.0,0.40970814]
[1688212500167,0.39865225,30572.0,30571.0,0.372629]
[1688212503170,0.39865225,30572.0,30571.0,0.39147845]
[1688212503660,0.37902425,30572.0,30571.0,0.40970814]
[1688212503862,0.39865225,30572.0,30571.0,0.372629]
[1688212504465,0.39865225,30572.0,30571.0,0.019629]
[1688212504466,0.50147865,30572.0,30571.0,0.019629]
[1688212509377,1.0,30570.0,30569.0,0.058888]
[1688212509587,1.0,30570.0,30568.0,0.058894]
[1688212509588,1.0,30569.0,30568.0,0.058894]
[1688212509777,1.37263,30569.0,30568.0,0.058894]
[1688212509985,1.45723477,30569.0,30568.0,0.058894]
[1688212510183,1.47546446,30569.0,30568.0,0.058894]
[1688212511880,1.39085969,30569.0,30568.0,0.058894]
[1688212517390,1.39085969,30569.0,30568.0,0.05865779]
[1688212518680,1.39085969,30569.0,30567.0,0.01963]
[1688212518882,1.01963,30569.0,30568.0,0.019631]
[1688212519187,1.37243,30569.0,30568.0,0.019631]
[1688212519489,1.39065969,30569.0,30568.0,0.019631]
[1688212519695,1.39065969,30569.0,30565.0,0.325732]
[1688212519696,1.4515552,30569.0,30565.0,0.325732]
[1688212519884,1.4515552,30569.0,30561.0,0.019635]
[1688212519885,1.0,30564.0,30561.0,0.019635]
[1688212520186,0.370435,30562.0,30561.0,0.019635]
[1688212520389,0.4430602,30562.0,30561.0,0.019635]
[1688212520582,0.4430602,30562.0,30561.0,0.039635]
[1688212520783,0.14456469,30562.0,30561.0,0.039635]
[1688212520982,0.14456469,30562.0,30561.0,0.019635]
[1688212521183,0.14456469,30562.0,30561.0,0.356835]
[1688212521780,0.14456469,30562.0,30561.0,0.337835]
[1688212525397,0.14456469,30562.0,30561.0,0.019635]
[1688212526196,0.14456469,30562.0,30560.0,0.019636]
[1688212526384,0.36982969,30561.0,30560.0,0.019636]
[1688212526586,1.0,30560.0,30558.0,0.058908]
[1688212526892,0.38866569,30559.0,30558.0,0.058908]
[1688212528100,0.74946569,30559.0,30558.0,0.058908]
[1688212528899,0.74946569,30559.0,30557.0,0.019637]
[1688212529095,0.380436,30559.0,30558.0,0.00293659]
[1688212529300,1.0,30557.0,30555.0,0.019638]
[1688212529489,1.14083351,30556.0,30555.0,0.019638]
[1688212529800,1.1590632,30556.0,30555.0,0.019638]
[1688212530004,0.7982632,30556.0,30555.0,0.019638]
[1688212531101,0.7982632,30556.0,30555.0,0.02256307]
[1688212531403,0.74386769,30556.0,30555.0,0.02256307]
[1688212531590,0.01822969,30555.0,30554.0,0.065466]
[1688212531900,0.39086869,30555.0,30554.0,0.065466]
[1688212532498,0.39086869,30555.0,30554.0,0.01994317]
[1688212533002,0.37052198,30555.0,30554.0,0.01994317]
[1688212534501,0.37052198,30555.0,30554.0,0.019639]
[1688212535187,0.37052198,30555.0,30553.0,0.32631821]
[1688212535394,0.371239,30554.0,30552.0,0.3031]
[1688212535699,0.37044,30553.0,30552.0,0.019641]
[1688212539306,0.73124,30553.0,30552.0,0.0240023]
[1688212543104,0.37044,30553.0,30552.0,0.0240023]
[1688212544508,0.37044,30553.0,30552.0,0.0238823]
[1688212545104,0.43439594,30553.0,30552.0,0.0238823]
[1688212545402,0.41475594,30553.0,30552.0,0.0238823]
[1688212545603,0.41475594,30553.0,30552.0,0.04273175]
[1688212546016,0.41475594,30553.0,30552.0,0.06096144]
[1688212546205,0.41475594,30553.0,30552.0,0.04273175]
[1688212546503,0.41475594,30553.0,30552.0,0.39473175]
[1688212546504,0.03065594,30553.0,30552.0,0.39473175]
[1688212546704,0.353,30555.0,30552.0,0.41296144]
[1688212546909,0.353,30555.0,30554.0,0.73264]
[1688212547311,0.353,30555.0,30554.0,0.73740127]
[1688212547509,0.353,30555.0,30554.0,0.75653945]
[1688212547710,0.353,30555.0,30554.0,1.09806914]
[1688212551816,0.353,30555.0,30554.0,1.07922914]
[1688212554404,0.353,30555.0,30554.0,1.06099945]
[1688212554603,0.4428604,30556.0,30554.0,1.06099945]
[1688212554815,0.4428604,30556.0,30555.0,0.37184945]
[1688212555112,0.371239,30556.0,30555.0,0.39617541]
[1688212555504,0.371239,30556.0,30555.0,0.39646398]
[1688212557615,0.371239,30556.0,30555.0,0.37761453]
[1688212558308,0.371239,30556.0,30555.0,0.39646398]
[1688212559818,0.371239,30556.0,30555.0,0.37755453]
[1688212560720,0.371239,30556.0,30555.0,0.39640398]
[1688212560919,0.371239,30556.0,30555.0,0.41463367]
[1688212561109,0.371239,30556.0,30555.0,0.39640398]
[1688212562820,0.371239,30556.0,30555.0,0.41463367]
[1688212563121,0.371239,30556.0,30555.0,0.39640398]
[1688212563523,0.371239,30556.0,30555.0,0.37755453]
[1688212564114,0.371239,30556.0,30555.0,0.39640398]
[1688212564625,0.371239,30556.0,30555.0,0.06169367]
[1688212565713,0.371239,30556.0,30555.0,0.04346398]
[1688212566814,0.371239,30556.0,30555.0,0.06169367]
[1688212567123,0.371239,30556.0,30555.0,0.04346398]
[1688212568326,0.371239,30556.0,30555.0,0.06169367]
[1688212569318,0.371239,30556.0,30555.0,0.04346398]
[1688212571125,0.371239,30556.0,30555.0,0.39646398]
[1688212571921,0.371239,30556.0,30555.0,0.41469367]
[1688212573523,0.3516,30556.0,30555.0,0.41469367]
[1688212573726,0.371239,30556.0,30555.0,0.41469367]
[1688212574628,0.372639,30556.0,30555.0,0.41279367]
[1688212576033,0.372639,30556.0,30555.0,0.37571453]
[1688212576719,0.372639,30556.0,30555.0,0.39394422]
[1688212577619,0.372639,30556.0,30555.0,0.41279367]
[1688212579229,0.372639,30556.0,30555.0,0.39456398]
[1688212579429,0.372639,30556.0,30555.0,0.41279367]
[1688212580827,0.372639,30556.0,30555.0,0.39456398]
[1688212581027,0.372639,30556.0,30555.0,0.37571453]
[1688212581737,0.733439,30556.0,30555.0,0.37571453]
[1688212582134,0.731239,30556.0,30555.0,0.02461453]
[1688212582442,0.731239,30556.0,30555.0,0.00497553]
[1688212582828,0.731239,30556.0,30555.0,0.00028857]
[1688212583426,0.731239,30556.0,30555.0,0.00412025]
[1688212583635,0.731239,30556.0,30553.0,0.01964]
[1688212583830,0.353,30554.0,30553.0,0.01964]
[1688212584022,0.37264,30554.0,30553.0,0.01964]
[1688212584634,0.37264,30554.0,30553.0,0.01992939]
[1688212586938,0.73344,30554.0,30553.0,0.00028939]
[1688212587645,0.73344,30554.0,30551.0,0.019641]
[1688212587843,0.3523,30552.0,30551.0,0.019641]
[1688212588145,0.371941,30552.0,30551.0,0.019641]
[1688212588641,0.371941,30552.0,30551.0,0.01993121]
[1688212590054,0.371941,30552.0,30551.0,0.03878066]
[1688212591137,0.371941,30552.0,30551.0,0.02375926]
[1688212593248,0.371941,30552.0,30551.0,0.02369926]
[1688212594336,0.3523,30552.0,30551.0,0.02369926]
[1688212594635,0.3523,30552.0,30551.0,0.37669926]
[1688212595034,0.3523,30552.0,30551.0,0.39492895]
[1688212595331,0.3523,30552.0,30551.0,0.39554871]
[1688212595734,0.37194,30552.0,30551.0,0.39554871]
[1688212595946,0.3523,30552.0,30551.0,0.39554871]
[1688212597149,0.3516,30552.0,30551.0,0.39334871]
[1688212597838,0.3516,30552.0,30551.0,0.4115784]
[1688212598348,0.3516,30552.0,30551.0,0.7723784]
[1688212600849,0.06602679,30554.0,30551.0,0.7723784]
[1688212601035,0.06602679,30554.0,30553.0,0.353]
[1688212601343,0.353,30556.0,30553.0,0.37264]
[1688212601546,0.353,30556.0,30555.0,0.371839]
[1688212602049,0.353,30556.0,30555.0,0.37571722]
[1688212602643,0.353,30556.0,30555.0,0.37600567]
[1688212602840,0.372638,30556.0,30555.0,0.37600567]
[1688212604644,0.372638,30556.0,30555.0,0.37460567]
[1688212605642,0.372638,30556.0,30555.0,0.39283536]
[1688212605844,0.372638,30556.0,30555.0,0.41168481]
[1688212606142,0.372638,30556.0,30555.0,0.39345512]
[1688212610263,0.353,30556.0,30555.0,0.39345512]
[1688212610962,0.353,30556.0,30555.0,0.41168481]
[1688212611553,0.353,30556.0,30555.0,0.39345512]
[1688212612049,0.372637,30556.0,30555.0,0.39345512]
[1688212612958,0.353,30556.0,30555.0,0.39345512]
[1688212613148,0.372638,30556.0,30555.0,0.39345512]
[1688212613348,0.372638,30556.0,30555.0,0.37460567]
[1688212614652,0.372638,30556.0,30555.0,0.02380567]
[1688212614961,0.372638,30556.0,30555.0,0.01992745]
[1688212615551,0.372638,30556.0,30555.0,0.019639]
[1688212617161,0.372638,30556.0,30555.0,0.03848845]
[1688212617662,0.372638,30556.0,30555.0,0.02380474]
[1688212618054,0.372638,30556.0,30555.0,0.01992773]
[1688212618654,0.372638,30556.0,30555.0,0.019639]
[1688212619765,0.372638,30556.0,30555.0,0.04216349]
[1688212620354,0.353,30556.0,30555.0,0.04216349]
[1688212620662,0.353,30556.0,30555.0,0.04245222]
[1688212622767,0.353,30556.0,30555.0,0.06068191]
[1688212624461,0.43764136,30556.0,30555.0,0.06068191]
[1688212624653,0.43524136,30556.0,30555.0,0.39325222]
[1688212625170,0.43524136,30556.0,30555.0,0.41148191]
[1688212626473,0.43524136,30556.0,30555.0,0.39325222]
[1688212626767,0.370237,30556.0,30555.0,0.37440277]
[1688212627167,0.45487989,30556.0,30555.0,0.37440277]
[1688212631372,0.43524289,30556.0,30555.0,0.39325222]
[1688212631869,0.370237,30556.0,30555.0,0.39325222]
[1688212632261,0.371237,30556.0,30555.0,0.02360277]
[1688212632467,1.0,30549.0,30548.0,0.419727]
[1688212632663,1.019642,30549.0,30548.0,0.3608]
[1688212632867,1.370442,30549.0,30548.0,0.019642]
[1688212633374,1.370442,30549.0,30548.0,0.03849145]
[1688212633575,0.370442,30549.0,30548.0,0.03887872]
[1688212633775,0.370442,30549.0,30548.0,0.05710841]
[1688212634775,0.370442,30549.0,30548.0,0.03887872]
[1688212634969,0.370442,30549.0,30548.0,0.05710841]
[1688212635159,0.370442,30549.0,30548.0,0.03887872]
[1688212635675,0.370442,30549.0,30548.0,0.05710841]
[1688212635973,0.370442,30549.0,30548.0,0.03887872]
[1688212636578,0.370442,30549.0,30548.0,0.02002927]
[1688212638276,0.370442,30549.0,30548.0,0.03887872]
[1688212638472,0.39618357,30549.0,30548.0,0.03887872]
[1688212638884,0.39618357,30549.0,30548.0,0.03888072]
[1688212639370,0.39618357,30549.0,30548.0,0.02003127]
[1688212639576,0.39618357,30549.0,30548.0,0.00038727]
[1688212640277,0.39618357,30549.0,30546.0,0.3122]
[1688212640278,1.353,30547.0,30540.0,0.761924]
[1688212640573,0.3528,30541.0,30540.0,1.092324]
[1688212640877,0.3528,30541.0,30540.0,1.42557345]
[1688212641286,0.372448,30541.0,30540.0,1.42557345]
[1688212641487,0.3528,30541.0,30540.0,1.42557345]
[1688212641675,0.0253713,30541.0,30540.0,1.44380314]
[1688212641982,0.0450193,30541.0,30540.0,1.42557345]
[1688212642895,0.0253713,30541.0,30540.0,1.44380314]
[1688212643792,0.0253713,30541.0,30540.0,1.44374314]
[1688212644598,0.3506,30542.0,30540.0,1.44474314]
[1688212644792,0.3506,30542.0,30541.0,0.38787914]
[1688212645093,0.3506,30542.0,30541.0,0.40752714]
[1688212646295,0.00049115,30544.0,30541.0,0.40752714]
[1688212646498,0.00049115,30544.0,30543.0,0.352]
[1688212646687,0.00049115,30544.0,30543.0,0.371646]
[1688212646992,0.00049115,30544.0,30543.0,0.76952514]
[1688212647888,0.00049115,30544.0,30543.0,0.77904414]
[1688212648700,0.00049115,30544.0,30543.0,0.77949731]
[1688212650497,0.02013715,30544.0,30543.0,0.77949731]
[1688212651002,0.00049115,30544.0,30543.0,0.77949731]
[1688212651700,0.00049115,30544.0,30543.0,0.77931731]
[1688212652395,0.29434301,30545.0,30544.0,0.03707914]
[1688212652601,0.31398801,30545.0,30544.0,0.39149545]
[1688212652900,0.31398801,30545.0,30544.0,0.40101238]
[1688212653105,0.31398801,30545.0,30544.0,0.74764207]
[1688212653399,0.31398801,30545.0,30544.0,0.72941238]
[1688212653601,0.31398801,30545.0,30544.0,0.72986473]
[1688212654600,0.39908502,30545.0,30544.0,0.37641238]
[1688212656405,0.39908502,30545.0,30544.0,0.02916293]
[1688212658995,0.39908502,30545.0,30544.0,0.04801238]
[1688212659603,0.39908502,30545.0,30544.0,0.04846473]
[1688212661099,0.39908502,30545.0,30544.0,0.02961528]
[1688212662706,0.39908502,30545.0,30544.0,0.02916293]
[1688212663598,0.39908502,30545.0,30544.0,0.02961528]
[1688212666709,0.39908502,30545.0,30544.0,0.04846473]
[1688212667207,0.39908502,30545.0,30544.0,0.39956473]
[1688212667709,0.39908502,30545.0,30544.0,0.41779442]
[1688212668900,0.39908502,30545.0,30544.0,0.39956473]
[1688212670112,0.39908502,30545.0,30544.0,0.38071528]
[1688212671313,0.39908502,30545.0,30544.0,0.39956473]
[1688212674715,0.39908502,30545.0,30544.0,0.02961528]
[1688212675912,0.39908602,30545.0,30544.0,0.02961528]
[1688212680509,0.39908602,30545.0,30544.0,0.02916293]
[1688212681609,0.39908602,30545.0,30544.0,0.02961528]
[1688212682110,0.39908602,30545.0,30544.0,0.04846473]
[1688212683711,0.39908602,30545.0,30544.0,0.04857781]
[1688212684115,0.02644002,30545.0,30544.0,0.39937781]
[1688212684323,0.02644002,30545.0,30544.0,0.4176075]
[1688212684526,0.642563,30546.0,30544.0,0.4176075]
[1688212684527,0.643763,30546.0,30544.0,0.4176075]
[1688212684827,0.643763,30546.0,30545.0,0.37184945]
[1688212685017,0.643763,30546.0,30545.0,0.41925502]
[1688212685326,0.3528,30546.0,30545.0,0.41925502]
[1688212685524,0.3528,30546.0,30545.0,0.78005502]
[1688212685711,0.00049109,30548.0,30545.0,0.78005502]
[1688212685907,0.00049109,30548.0,30547.0,0.372644]
[1688212686310,0.00049109,30548.0,30547.0,0.41925339]
[1688212686718,0.02013409,30548.0,30547.0,0.41925339]
[1688212687222,0.02013409,30548.0,30547.0,0.4010237]
[1688212687421,0.02013409,30548.0,30547.0,0.41925339]
[1688212688727,0.04600997,30548.0,30547.0,0.41925339]
[1688212688916,0.02013409,30548.0,30547.0,0.41925339]
[1688212689727,0.00049109,30548.0,30547.0,0.41925339]
[1688212693032,0.02013409,30548.0,30547.0,0.41925339]
[1688212694527,0.37313409,30548.0,30547.0,0.41925339]
[1688212697922,0.37313409,30548.0,30547.0,0.4010237]
[1688212698431,0.37313409,30548.0,30547.0,0.41925339]
[1688212698842,0.37313409,30548.0,30547.0,0.4010237]
[1688212701235,0.37313409,30548.0,30547.0,0.02917425]
[1688212701938,0.37313409,30548.0,30547.0,0.0480237]
[1688212704045,0.37313409,30548.0,30547.0,0.02917425]
[1688212704638,0.45780003,30548.0,30547.0,0.00953025]
[1688212705548,0.45101788,30548.0,30547.0,0.02917525]
[1688212707046,0.36635194,30548.0,30547.0,0.02917525]
[1688212708049,0.36635194,30548.0,30547.0,0.0480247]
[1688212708450,0.36635194,30548.0,30547.0,0.02917525]
[1688212714443,0.36635194,30548.0,30547.0,0.0480247]
[1688212715154,0.34670894,30548.0,30547.0,0.0480247]
[1688212715854,0.34670894,30548.0,30547.0,0.06625439]
[1688212716351,0.34670894,30548.0,30547.0,0.0480247]
[1688212717552,0.34670894,30548.0,30547.0,0.06625439]
[1688212717850,0.3523,30548.0,30547.0,0.41925439]
[1688212718049,0.02676978,30549.0,30547.0,0.41925439]
[1688212718247,0.02676978,30549.0,30548.0,0.76862214]
[1688212718445,0.06465758,30551.0,30548.0,0.76862214]
[1688212718648,0.06465758,30551.0,30550.0,0.372642]
[1688212718953,0.14931206,30551.0,30550.0,0.40972114]
[1688212719156,0.14931206,30551.0,30550.0,0.41441122]
[1688212720047,0.00049104,30551.0,30550.0,0.41441122]
[1688212720450,0.00049104,30551.0,30550.0,0.74361122]
[1688212720852,0.0262569,30551.0,30550.0,0.74361122]
[1688212721048,0.00049104,30551.0,30550.0,0.74361122]
[1688212722251,0.662902,30555.0,30550.0,0.70653208]
[1688212722448,0.643263,30555.0,30554.0,0.3508]
[1688212722651,0.643263,30555.0,30554.0,0.37044]
[1688212722849,0.643263,30555.0,30554.0,0.37512854]
[1688212723052,0.643263,30555.0,30554.0,0.41220768]
[1688212723243,0.3523,30555.0,30554.0,0.72400768]
[1688212724553,0.02664396,30555.0,30554.0,0.73050768]
[1688212724946,0.353,30556.0,30554.0,0.73050768]
[1688212725145,0.353,30556.0,30555.0,0.39007914]
[1688212725454,0.37910931,30556.0,30555.0,0.41440528]
[1688212727257,0.39874831,30556.0,30555.0,0.41440528]
[1688212728157,0.46494309,30556.0,30555.0,0.41440528]
[1688212729554,0.54958975,30556.0,30555.0,0.41440528]
[1688212729757,0.54958975,30556.0,30555.0,0.37732614]
[1688212732057,0.54958975,30556.0,30555.0,0.39617559]
[1688212732943,0.54958975,30556.0,30555.0,0.37732614]
[1688212734548,0.54888975,30556.0,30555.0,0.02432614]
[1688212735458,0.54888975,30556.0,30555.0,0.04317559]
[1688212735861,0.54888975,30556.0,30555.0,0.02432614]
[1688212736955,0.46424309,30556.0,30555.0,0.02432614]
[1688212737161,0.46424309,30556.0,30555.0,0.04317559]
[1688212739965,0.46424309,30556.0,30555.0,0.02432614]
[1688212743368,0.46424309,30556.0,30555.0,0.04317559]
[1688212744367,0.46424309,30556.0,30555.0,0.06140528]
[1688212744965,0.46424309,30556.0,30555.0,0.04317559]
[1688212745166,0.46424309,30556.0,30555.0,0.06140528]
[1688212745569,0.46424309,30556.0,30555.0,0.04317559]
[1688212745869,0.46424309,30556.0,30555.0,0.06140528]
[1688212746563,0.46424309,30556.0,30555.0,0.04317559]
[1688212747159,0.46424309,30556.0,30555.0,0.02432614]
[1688212751374,0.46424309,30556.0,30555.0,0.04317559]
[1688212751566,0.11194309,30556.0,30555.0,0.39617559]
[1688212751968,0.19659161,30556.0,30555.0,0.39617559]
[1688212752863,0.19659161,30556.0,30555.0,0.37732614]
[1688212754566,0.54739161,30556.0,30555.0,0.37632614]
[1688212759582,0.46274309,30556.0,30555.0,0.37632614]
[1688212760181,0.54739209,30556.0,30555.0,0.37632614]
[1688212764588,0.54739209,30556.0,30555.0,0.02432614]
[1688212772280,0.83835509,30556.0,30555.0,0.02432614]
[1688212773188,0.84485509,30556.0,30553.0,0.0491]
[1688212773488,0.7138,30554.0,30553.0,0.058919]
[1688212773792,0.818088,30554.0,30553.0,0.058919]
[1688212778101,0.818088,30554.0,30552.0,0.05892]
[1688212778303,0.457289,30553.0,30552.0,0.05892]
[1688212779300,0.457289,30553.0,30552.0,0.05802]
[1688212780897,0.457289,30553.0,30552.0,0.06144203]
[1688212782199,0.37264,30553.0,30552.0,0.06144203]
[1688212784009,0.37264,30553.0,30552.0,0.41254203]
[1688212784604,0.37264,30553.0,30552.0,0.06144203]
[1688212787911,0.43971109,30553.0,30552.0,0.06144203]
[1688212789507,0.52436481,30553.0,30552.0,0.06144203]
[1688212797014,0.43971109,30553.0,30552.0,0.06144203]
[1688212800318,0.06707109,30553.0,30552.0,0.41444203]
[1688212800613,0.671402,30555.0,30552.0,0.41444203]
[1688212800803,0.671402,30555.0,30554.0,0.3508]
[1688212801007,0.671402,30555.0,30554.0,0.370439]
[1688212801211,0.380439,30555.0,30554.0,0.370439]
[1688212801410,0.733239,30555.0,30554.0,0.019639]
[1688212801611,0.733239,30555.0,30554.0,0.331939]
[1688212802921,0.81788936,30555.0,30554.0,0.331939]
[1688212805311,0.45708936,30555.0,30554.0,0.331939]
[1688212805719,0.43745036,30555.0,30554.0,0.36901814]
[1688212806023,0.43745036,30555.0,30554.0,0.35078845]
[1688212806418,0.45708936,30555.0,30554.0,0.331939]
[1688212806723,0.45027536,30555.0,30554.0,0.331939]
[1688212806921,0.45027536,30555.0,30554.0,0.35666869]
[1688212806922,0.43063636,30555.0,30554.0,0.35666869]
[1688212807215,0.43063636,30555.0,30554.0,0.37551814]
[1688212807411,0.45027536,30555.0,30554.0,0.35728845]
[1688212807815,0.45027536,30555.0,30554.0,0.331939]
[1688212813613,0.45027536,30555.0,30554.0,0.3123]
[1688212814710,0.45027536,30555.0,30554.0,0.33194]
[1688212815134,0.74123836,30555.0,30554.0,0.33194]
[1688212817221,0.73446036,30555.0,30554.0,0.33194]
[1688212819722,0.7166469,30555.0,30554.0,0.33194]
[1688212821617,0.5666469,30555.0,30554.0,0.3709526]
[1688212821821,0.5666469,30555.0,30554.0,0.33194]
[1688212822228,0.9274469,30555.0,30554.0,0.33194]
[1688212822832,0.9274469,30555.0,30554.0,0.3123]
[1688212823019,0.9274469,30555.0,30554.0,0.331939]
[1688212825128,0.9274469,30555.0,30554.0,0.019639]
[1688212825720,1.0,30554.0,30552.0,0.019641]
[1688212825928,0.45729036,30553.0,30552.0,0.019641]
[1688212827625,0.74825336,30553.0,30552.0,0.019641]
[1688212833837,0.42095326,30553.0,30552.0,0.019641]
[1688212834236,0.09365316,30553.0,30552.0,0.019641]
[1688212834531,0.46629316,30553.0,30552.0,0.019641]
[1688212834727,0.15863306,30553.0,30552.0,0.019641]
[1688212835140,1.378401,30554.0,30552.0,0.019641]
[1688212835437,0.37264,30553.0,30552.0,0.019641]
[1688212838238,0.45729535,30553.0,30552.0,0.019641]
[1688212840542,0.45729535,30553.0,30550.0,0.058927]
[1688212840841,0.371942,30551.0,30550.0,0.058927]
[1688212841440,0.371942,30551.0,30548.0,0.353]
[1688212841643,0.019643,30548.0,30547.0,0.04959998]
[1688212841842,0.371243,30548.0,30547.0,0.04959998]
[1688212842048,0.45590747,30548.0,30547.0,0.04959998]
[1688212842428,0.371243,30548.0,30547.0,0.04959998]
[1688212844445,1.371243,30548.0,30547.0,0.04959998]
[1688212844736,1.371243,30548.0,30547.0,0.00049098]
[1688212844737,1.45590894,30548.0,30547.0,0.00049098]
[1688212845340,1.66465781,30548.0,30547.0,0.02013498]
[1688212845546,1.66465781,30548.0,30547.0,0.00760891]
[1688212846829,1.66465781,30548.0,30547.0,0.02707291]
[1688212848743,1.66465781,30548.0,30547.0,0.00742891]
[1688212849539,1.57999187,30548.0,30547.0,0.00742891]
[1688212850342,1.371243,30548.0,30547.0,0.00742891]
[1688212851038,1.58407167,30548.0,30547.0,0.00742891]
[1688212851751,1.58407167,30548.0,30547.0,0.01995498]
[1688212852136,1.58407167,30548.0,30547.0,0.02712394]
[1688212852336,1.58407167,30548.0,30547.0,0.04597339]
[1688212852544,1.371243,30548.0,30547.0,0.04597339]
[1688212852735,1.3516,30548.0,30547.0,0.06420308]
[1688212852937,1.3516,30548.0,30547.0,0.04597339]
[1688212853745,1.3516,30548.0,30547.0,0.02712394]
[1688212854448,1.371244,30548.0,30547.0,0.02712394]
[1688212855048,1.371244,30548.0,30547.0,0.01995498]
[1688212861437,1.0,30546.0,30541.0,0.382121]
[1688212861644,0.353,30542.0,30541.0,0.382121]
[1688212861940,0.42704351,30542.0,30541.0,0.380121]
[1688212862346,0.42704351,30542.0,30541.0,0.3888829]
[1688212862858,0.04523002,30542.0,30541.0,0.3888829]
[1688212863351,0.019648,30542.0,30541.0,0.3888829]
[1688212863553,0.03471993,30542.0,30541.0,0.3888829]
[1688212865254,0.38751993,30542.0,30541.0,0.3888829]
[1688212866347,0.372448,30542.0,30541.0,0.3888829]
[1688212867953,0.372448,30542.0,30541.0,0.3594099]
[1688212874450,0.372448,30542.0,30541.0,0.3220299]
[1688212875846,0.39855438,30542.0,30541.0,0.3220299]
[1688212876366,1.39855438,30542.0,30541.0,0.3220299]
[1688212876750,1.41362631,30542.0,30541.0,0.3220299]
[1688212877462,1.39855438,30542.0,30541.0,0.3220299]
[1688212885252,1.39855438,30542.0,30541.0,0.0284099]
[1688212885565,1.39855438,30542.0,30541.0,0.0087619]
[1688212885759,1.39855438,30542.0,30541.0,0.0284089]
[1688212886067,1.39855438,30542.0,30541.0,0.0087619]
[1688212886260,1.39855438,30542.0,30541.0,0.01105164]
[1688212886564,1.39855438,30542.0,30541.0,0.019649]
[1688212886763,1.39855438,30542.0,30541.0,0.03074838]
[1688212887969,1.61803756,30542.0,30541.0,0.03074838]
[1688212890655,1.39855438,30542.0,30541.0,0.03074838]
[1688212890855,1.62044789,30542.0,30541.0,0.03074838]
[1688212892264,1.39855438,30542.0,30541.0,0.03074838]
[1688212892467,1.39855438,30542.0,30541.0,0.03109736]
[1688212893556,1.39855438,30542.0,30541.0,0.03074838]
[1688212894553,1.39855438,30542.0,30541.0,0.03109938]
[1688212894554,1.4832394,30542.0,30541.0,0.03109938]
[1688212895567,1.39855438,30542.0,30541.0,0.03109938]
[1688212896357,1.41362631,30542.0,30541.0,0.03109938]
[1688212896558,1.39855438,30542.0,30541.0,0.03109938]
[1688212896961,1.41362631,30542.0,30541.0,0.03109938]
[1688212897365,1.39855438,30542.0,30541.0,0.03109938]
[1688212897678,1.39855438,30542.0,30541.0,0.03074838]
[1688212897957,1.41362631,30542.0,30541.0,0.03074838]
[1688212898160,1.49831085,30542.0,30541.0,0.03074838]
[1688212899471,1.72024812,30542.0,30541.0,0.03074838]
[1688212899870,1.72024812,30542.0,30541.0,0.01109938]
[1688212900265,1.72024812,30542.0,30541.0,0.03074738]
[1688212900463,1.72024812,30542.0,30541.0,0.01109938]
[1688212900660,1.72024812,30542.0,30541.0,0.03074738]
[1688212900860,1.70517619,30542.0,30541.0,0.01109938]
[1688212901671,1.70517619,30542.0,30541.0,0.03074538]
[1688212902074,1.62049165,30542.0,30541.0,0.03074538]
[1688212902461,1.62049165,30542.0,30541.0,0.03109694]
[1688212906579,1.70518058,30542.0,30541.0,0.01145094]
[1688212906880,1.70518058,30542.0,30541.0,0.03109794]
[1688212908579,1.70518058,30542.0,30541.0,0.03074638]
[1688212909083,1.62049165,30542.0,30541.0,0.03074638]
[1688212909579,1.70518056,30542.0,30541.0,0.03112357]
[1688212910383,1.70518056,30542.0,30541.0,0.03074638]
[1688212917182,1.62049165,30542.0,30541.0,0.03074638]
[1688212918384,1.62049165,30542.0,30541.0,0.03118599]
[1688212920275,1.7051797,30542.0,30541.0,0.03118599]
[1688212920972,1.70517925,30542.0,30541.0,0.03118599]
[1688212925783,1.70517925,30542.0,30541.0,0.01153899]
[1688212926286,1.70517925,30542.0,30541.0,0.03118699]
[1688212926676,1.70517925,30542.0,30541.0,0.01153899]
[1688212927481,1.70517925,30542.0,30541.0,0.03118699]
[1688212928892,1.70517925,30542.0,30541.0,0.01918699]
[1688212929089,1.70517925,30542.0,30541.0,0.02749444]
[1688212929589,1.70517925,30542.0,30541.0,0.0279788]
[1688212949402,1.70517925,30542.0,30541.0,0.00879181]
[1688212949787,2.19440971,30542.0,30541.0,0.00879181]
[1688212950219,2.19440971,30542.0,30541.0,0.02843881]
[1688212953006,2.20948164,30542.0,30541.0,0.02843881]
[1688212954701,2.19440971,30542.0,30541.0,0.02843881]
[1688212955005,2.20948164,30542.0,30541.0,0.02843881]
[1688212955205,2.19440971,30542.0,30541.0,0.02843881]
[1688212959410,2.19440971,30542.0,30541.0,0.02795445]
[1688212981022,1.33273125,30542.0,30541.0,0.38875445]
[1688212981326,1.60104365,30542.0,30541.0,0.73955445]
[1688212981513,1.60104365,30542.0,30541.0,0.77663359]
[1688212981709,1.60104365,30542.0,30541.0,0.7584039]
[1688212981710,1.62069165,30542.0,30541.0,0.7584039]
[1688212982119,1.62069165,30542.0,30541.0,0.77663359]
[1688212982310,1.62069165,30542.0,30541.0,0.7584039]
[1688212983222,1.62069165,30542.0,30541.0,0.77663359]
[1688212983425,1.62069165,30542.0,30541.0,0.7584039]
[1688212984516,1.61929165,30542.0,30541.0,0.74175445]
[1688212984812,1.70397537,30542.0,30541.0,0.74175445]
[1688212986124,1.70397537,30542.0,30541.0,0.38095445]
[1688212987622,1.68432737,30542.0,30541.0,0.38095445]
[1688212989718,1.70397437,30542.0,30541.0,0.38095445]
[1688212989918,1.68432737,30542.0,30541.0,0.38095445]
[1688212991427,1.68327184,30542.0,30541.0,0.38095445]
[1688212992427,1.59858812,30542.0,30541.0,0.38095445]
[1688212993026,1.59858812,30542.0,30541.0,0.3998039]
[1688212993426,1.61823612,30542.0,30541.0,0.3998039]
[1688212993929,1.61823612,30542.0,30541.0,0.38095445]
[1688212994731,1.61823612,30542.0,30541.0,0.02795445]
[1688212997225,1.70292256,30542.0,30541.0,0.02795445]
[1688213006942,1.76910147,30542.0,30541.0,0.02795445]
[1688213008925,1.68441503,30542.0,30541.0,0.02795445]
[1688213010027,1.77560319,30542.0,30541.0,0.00830745]
[1688213010331,1.76910319,30542.0,30541.0,0.02781674]
[1688213010828,1.76910319,30542.0,30541.0,0.00816774]
[1688213011232,1.76910319,30542.0,30540.0,0.019648]
[1688213011439,0.45513716,30541.0,30540.0,0.019649]
[1688213011639,0.67707443,30541.0,30539.0,0.357824]
[1688213011838,0.370249,30540.0,30539.0,0.3087]
[1688213012339,0.370249,30540.0,30539.0,0.328349]
[1688213012846,0.370249,30540.0,30539.0,0.3087]
[1688213014731,0.370249,30540.0,30538.0,0.02013914]
[1688213014933,0.3516,30539.0,30538.0,0.32803914]